[Event "GER-ch Youth U12W 2020"]
[Site "Willingen"]
[Date "2020.10.28"]
[Round "3.10"]
[White "Reich, Elisabeth"]
[Black "Bakó, Evelin"]
[Result "0-1"]
[ECO "C42"]
[WhiteElo "1128"]
[BlackElo "1192"]
[Annotator "NA"]
[PlyCount "96"]
[EventDate "2020.10.27"]
[EventType "swiss"]
[EventRounds "7"]
[EventCountry "GER"]
[SourceTitle "playchess.com"]
[Source "ChessBase"]
[SourceQuality "1"]
[TimeControl "40/5400+30:1800+30"]

1. e4 {[%emt 0:00:00]} e5 {[%emt 0:00:00]} 2. Nf3 {[%emt 0:00:00]} Nf6 {[%emt 0:00:00]} 3. Nc3 {[%emt 0:00:00]} Bb4 {[%emt 0:00:00]} 4. d3 {[%emt 0:00:20]} Bxc3+ {[%emt 0:04:02]} 5. bxc3 {[%emt 0:00:07]} d6 {[%emt 0:00:12]} 6. Bg5 {[%emt 0:00:17]} Nbd7 {[%emt 0:00:41]} 7. Be2 {[%emt 0:01:46]} O-O {[%emt 0:01:31]} 8. O-O {[%emt 0:00:09]} h6 {[%emt 0:01:42]} 9. Bh4 {[%emt 0:00:20]} Re8 {[%emt 0:01:18]} 10. Nd2 {[%emt 0:03:41]} b6 {[%emt 0:01:45]} 11. Bg4 {[%emt 0:00:42]} c6 {[%emt 0:11:27]} 12. Re1 {[%emt 0:01:21]} d5 {[%emt 0:02:42]} 13. c4 {[%emt 0:02:00]} d4 {[%emt 0:00:50]} 14. Nb3 {[%emt 0:01:19]} c5 {[%emt 0:01:14]} 15. a4 {[%emt 0:01:04]} a6 {[%emt 0:02:17]} 16. Qf3 {[%emt 0:02:31]} Rb8 {[%emt 0:03:49]} 17. Bxd7 {[%emt 0:00:46]} Bxd7 {[%emt 0:00:12]} 18. Bxf6 {[%emt 0:00:10]} Qxf6 {[%emt 0:00:12]} 19. Qxf6 {[%emt 0:00:14]} gxf6 {[%emt 0:00:07]} 20. a5 {[%emt 0:00:18]} Rec8 {[%emt 0:01:32]} 21. axb6 {[%emt 0:02:05]} Rxb6 {[%emt 0:00:23]} 22. Ra5 {[%emt 0:00:12]} Rbc6 {[%emt 0:00:23]} 23. Rea1 {[%emt 0:00:13]} f5 {[%emt 0:01:42]} 24. exf5 {[%emt 0:00:33]} Bxf5 {[%emt 0:00:08]} 25. Rxa6 {[%emt 0:00:09]} Rxa6 {[%emt 0:00:27]} 26. Rxa6 {[%emt 0:00:05]} e4 {[%emt 0:00:34]} 27. Rxh6 {[%emt 0:01:43]} exd3 {[%emt 0:00:25]} 28. cxd3 {[%emt 0:00:28]} Bxd3 {[%emt 0:00:10]} 29. Nd2 {[%emt 0:00:39]} Re8 {[%emt 0:01:08]} 30. f3 {[%emt 0:00:48]} Re1+ {[%emt 0:00:15]} 31. Kf2 {[%emt 0:00:06]} Re2+ {[%emt 0:00:08]} 32. Kg3 {[%emt 0:00:06]} Rxd2 {[%emt 0:00:11]} 33. Rc6 {[%emt 0:00:10]} Bxc4 {[%emt 0:00:17]} 34. Rxc5 {[%emt 0:00:06]} Bf1 {[%emt 0:00:14]} 35. Rd5 {[%emt 0:00:11]} Rxg2+ {[%emt 0:00:13]} 36. Kh3 {[%emt 0:00:17]} Rg5+ {[%emt 0:00:07]} 37. Kh4 {[%emt 0:00:14]} Rxd5 {[%emt 0:00:08]} 38. h3 {[%emt 0:00:07]} Be2 {[%emt 0:00:32]} 39. f4 {[%emt 0:00:08]} Rh5+ {[%emt 0:00:12]} 40. Kg3 {[%emt 0:00:21]} f5 {[%emt 0:00:20]} 41. Kf2 {[%emt 0:30:07]} Bc4 {[%emt 0:30:15]} 42. Ke1 {[%emt 0:00:09]} Rxh3 {[%emt 0:00:10]} 43. Kd2 {[%emt 0:00:04]} Rh2+ {[%emt 0:00:07]} 44. Kd1 {[%emt 0:00:07]} Kf7 {[%emt 0:00:10]} 45. Ke1 {[%emt 0:00:06]} d3 {[%emt 0:00:44]} 46. Kd1 {[%emt 0:00:23]} Bb3+ {[%emt 0:00:09]} 47. Ke1 {[%emt 0:00:19]} d2+ {[%emt 0:00:10]} 48. Kf1 {[%emt 0:00:03]} d1=Q# {[%emt 0:00:09]} 0-1

[Event "GER-ch Youth U12W 2020"]
[Site "Willingen"]
[Date "2020.10.28"]
[Round "3.11"]
[White "Petrosyan, Ani"]
[Black "Khanbekyan, Nare"]
[Result "1-0"]
[ECO "A04"]
[WhiteElo "1370"]
[BlackElo "1329"]
[Annotator "NA"]
[PlyCount "81"]
[EventDate "2020.10.27"]
[EventType "swiss"]
[EventRounds "7"]
[EventCountry "GER"]
[SourceTitle "playchess.com"]
[Source "ChessBase"]
[SourceQuality "1"]
[TimeControl "40/5400+30:1800+30"]

1. Nf3 {[%emt 0:00:00]} c5 {[%emt 0:00:00]} 2. e3 {[%emt 0:00:00]} g6 {[%emt 0:00:11]} 3. c4 {[%emt 0:01:06]} Bg7 {[%emt 0:00:39]} 4. Nc3 {[%emt 0:00:18]} Nf6 {[%emt 0:00:49]} 5. Be2 {[%emt 0:00:21]} O-O {[%emt 0:00:35]} 6. O-O {[%emt 0:01:50]} b6 {[%emt 0:02:59]} 7. d4 {[%emt 0:01:46]} Bb7 {[%emt 0:02:39]} 8. d5 {[%emt 0:01:32]} e6 {[%emt 0:02:54]} 9. e4 {[%emt 0:02:12]} Na6 {[%emt 0:04:43]} 10. Bf4 {[%emt 0:02:10]} Nc7 {[%emt 0:08:20]} 11. a4 {[%emt 0:04:16]} a6 {[%emt 0:06:25]} 12. Qb3 {[%emt 0:04:03]} b5 {[%emt 0:02:41]} 13. axb5 {[%emt 0:01:01]} axb5 {[%emt 0:00:12]} 14. Qd1 {[%emt 0:10:24]} bxc4 {[%emt 0:01:50]} 15. Bxc4 {[%emt 0:04:16]} exd5 {[%emt 0:01:02]} 16. Rxa8 {[%emt 0:03:11]} Bxa8 {[%emt 0:00:25]} 17. Bxd5 {[%emt 0:00:26]} Ncxd5 {[%emt 0:01:09]} 18. Nxd5 {[%emt 0:00:17]} Nxe4 {[%emt 0:01:04]} 19. Re1 {[%emt 0:00:53]} Nf6 {[%emt 0:02:12]} 20. Nc7 {[%emt 0:01:05]} Bc6 {[%emt 0:01:23]} 21. Bd6 {[%emt 0:00:22]} Qc8 {[%emt 0:05:02]} 22. Qb3 {[%emt 0:02:43]} Rd8 {[%emt 0:01:21]} 23. Re7 {[%emt 0:00:31]} Rf8 {[%emt 0:11:32]} 24. Ng5 {[%emt 0:03:28]} Qb7 {[%emt 0:02:41]} 25. Qxb7 {[%emt 0:02:15]} Bxb7 {[%emt 0:01:21]} 26. Bxc5 {[%emt 0:00:27]} Rc8 {[%emt 0:01:32]} 27. Bd6 {[%emt 0:01:20]} Bf8 {[%emt 0:01:35]} 28. Rxf7 {[%emt 0:07:41]} Bxd6 {[%emt 0:00:47]} 29. Rxf6 {[%emt 0:00:19]} Rxc7 {[%emt 0:00:16]} 30. f4 {[%emt 0:01:33]} Rc1+ {[%emt 0:00:52]} 31. Kf2 {[%emt 0:00:47]} Rc2+ {[%emt 0:00:06]} 32. Ke3 {[%emt 0:00:56]} Bc5+ {[%emt 0:00:39]} 33. Kd3 {[%emt 0:00:22]} Rxg2 {[%emt 0:00:27]} 34. Rf7 {[%emt 0:00:28]} Ba6+ {[%emt 0:00:59]} 35. Ke4 {[%emt 0:00:21]} Rxh2 {[%emt 0:01:26]} 36. Rxd7 {[%emt 0:00:31]} Re2+ {[%emt 0:00:20]} 37. Kf3 {[%emt 0:00:33]} Re3+ {[%emt 0:00:35]} 38. Kg2 {[%emt 0:01:23]} h6 {[%emt 0:00:46]} 39. Rd8+ {[%emt 0:00:12]} Kg7 {[%emt 0:00:23]} 40. Rd7+ {[%emt 0:01:07]} Kf6 {[%emt 0:01:42]} 41. Rf7# 1-0

[Event "GER-ch Youth U12W 2020"]
[Site "Willingen"]
[Date "2020.10.28"]
[Round "3.12"]
[White "Bangiev, Katharina"]
[Black "Czäczine, Laura"]
[Result "1-0"]
[ECO "C47"]
[WhiteElo "1539"]
[BlackElo "1309"]
[Annotator "NA"]
[PlyCount "77"]
[EventDate "2020.10.27"]
[EventType "swiss"]
[EventRounds "7"]
[EventCountry "GER"]
[SourceTitle "playchess.com"]
[Source "ChessBase"]
[SourceQuality "1"]
[TimeControl "40/5400+30:1800+30"]

1. e4 {[%emt 0:00:00]} e5 {[%emt 0:00:00]} 2. Nf3 {[%emt 0:00:00]} Nc6 {[%emt 0:00:00]} 3. Nc3 {[%emt 0:00:00]} Nf6 {[%emt 0:00:02]} 4. g3 {[%emt 0:00:00]} d5 {[%emt 0:01:25]} 5. exd5 {[%emt 0:02:33]} Nxd5 {[%emt 0:00:16]} 6. Bg2 {[%emt 0:00:16]} Bg4 {[%emt 0:01:10]} 7. O-O {[%emt 0:01:10]} Nxc3 {[%emt 0:01:35]} 8. bxc3 {[%emt 0:00:55]} Qd7 {[%emt 0:02:07]} 9. d3 {[%emt 0:02:59]} O-O-O {[%emt 0:00:33]} 10. Be3 {[%emt 0:02:30]} Qe6 {[%emt 0:01:16]} 11. Qc1 {[%emt 0:04:23]} f6 {[%emt 0:02:59]} 12. Qb2 {[%emt 0:09:34]} h5 {[%emt 0:00:58]} 13. h4 {[%emt 0:07:45]} g5 {[%emt 0:01:55]} 14. hxg5 {[%emt 0:03:06]} Bxf3 {[%emt 0:00:42]} 15. Bxf3 {[%emt 0:00:25]} h4 {[%emt 0:00:17]} 16. Qb3 {[%emt 0:04:04]} Qh3 {[%emt 0:02:00]} 17. Bd5 {[%emt 0:03:25]} Re8 {[%emt 0:01:12]} 18. Rab1 {[%emt 0:08:36]} Na5 {[%emt 0:00:49]} 19. Bxb7+ {[%emt 0:03:15]} Kd7 {[%emt 0:01:41]} 20. Qd5+ {[%emt 0:03:52]} Bd6 {[%emt 0:00:42]} 21. Qxa5 {[%emt 0:08:15]} hxg3 {[%emt 0:00:15]} 22. Rfe1 {[%emt 0:01:28]} gxf2+ {[%emt 0:05:11]} 23. Kxf2 {[%emt 0:06:56]} Qh2+ {[%emt 0:01:28]} 24. Bg2 {[%emt 0:00:14]} fxg5 {[%emt 0:01:56]} 25. Qb5+ {[%emt 0:00:37]} Ke7 {[%emt 0:01:39]} 26. Bxg5+ {[%emt 0:03:19]} Kf8 {[%emt 0:00:19]} 27. Qd5 {[%emt 0:02:41]} Qh5 {[%emt 0:03:18]} 28. Qf3+ {[%emt 0:00:20]} Kg8 29. Qxh5 {[%emt 0:00:40]} Rxh5 {[%emt 0:00:47]} 30. Bd5+ {[%emt 0:00:52]} Kg7 {[%emt 0:00:25]} 31. Rg1 {[%emt 0:00:39]} Kh7 {[%emt 0:01:39]} 32. Ke2 {[%emt 0:01:24]} Bc5 {[%emt 0:00:38]} 33. Be4+ {[%emt 0:01:21]} Kg7 {[%emt 0:00:34]} 34. Be3+ {[%emt 0:00:24]} Kf7 {[%emt 0:00:26]} 35. Bg6+ {[%emt 0:00:34]} Ke6 {[%emt 0:00:13]} 36. Bxh5 {[%emt 0:00:09]} Bxe3 {[%emt 0:00:10]} 37. Kxe3 {[%emt 0:00:34]} Rh8 {[%emt 0:00:21]} 38. Rg6+ {[%emt 0:01:00]} Kf5 {[%emt 0:00:13]} 39. Rf1# {[%emt 0:00:15]} 1-0

[Event "GER-ch Youth U12W 2020"]
[Site "Willingen"]
[Date "2020.10.28"]
[Round "3.13"]
[White "Heuberger, Sandra"]
[Black "Siegel, Irene"]
[Result "0-1"]
[ECO "D60"]
[WhiteElo "1004"]
[BlackElo "1380"]
[Annotator "NA"]
[PlyCount "124"]
[EventDate "2020.10.27"]
[EventType "swiss"]
[EventRounds "7"]
[EventCountry "GER"]
[SourceTitle "playchess.com"]
[Source "ChessBase"]
[SourceQuality "1"]
[TimeControl "40/5400+30:1800+30"]

1. d4 {[%emt 0:00:00]} d5 {[%emt 0:00:00]} 2. c4 {[%emt 0:00:00]} e6 {[%emt 0:00:00]} 3. Nc3 {[%emt 0:00:00]} Nf6 {[%emt 0:00:00]} 4. Bg5 {[%emt 0:00:04]} Be7 {[%emt 0:00:03]} 5. Nf3 {[%emt 0:00:32]} O-O {[%emt 0:00:16]} 6. e3 {[%emt 0:00:33]} Nbd7 {[%emt 0:00:14]} 7. cxd5 {[%emt 0:00:48]} exd5 {[%emt 0:00:13]} 8. Bd3 {[%emt 0:00:42]} b6 {[%emt 0:00:29]} 9. O-O {[%emt 0:00:48]} Bb7 {[%emt 0:00:27]} 10. Qc2 {[%emt 0:00:51]} h6 {[%emt 0:01:13]} 11. Bh4 {[%emt 0:01:21]} c5 {[%emt 0:01:03]} 12. Nd2 {[%emt 0:04:17]} Qc7 {[%emt 0:02:46]} 13. Rfe1 {[%emt 0:04:38]} c4 {[%emt 0:02:49]} 14. Bf1 {[%emt 0:03:38]} Rfe8 {[%emt 0:00:33]} 15. Nb5 {[%emt 0:01:23]} Qd8 {[%emt 0:03:58]} 16. Bg3 {[%emt 0:00:41]} a6 {[%emt 0:03:47]} 17. Nc7 {[%emt 0:05:08]} Rc8 {[%emt 0:05:56]} 18. Nxe8 {[%emt 0:00:43]} Qxe8 {[%emt 0:00:06]} 19. a3 {[%emt 0:01:21]} b5 {[%emt 0:02:19]} 20. f3 {[%emt 0:01:51]} Nh5 {[%emt 0:09:38]} 21. Bf2 {[%emt 0:01:29]} Ndf6 {[%emt 0:05:38]} 22. e4 {[%emt 0:03:50]} dxe4 {[%emt 0:02:14]} 23. Nxe4 {[%emt 0:01:15]} Bxe4 {[%emt 0:03:31]} 24. fxe4 {[%emt 0:00:30]} Ng4 {[%emt 0:02:15]} 25. Qe2 {[%emt 0:08:06]} Qd7 {[%emt 0:03:32]} 26. h3 {[%emt 0:02:02]} Ngf6 {[%emt 0:00:58]} 27. e5 {[%emt 0:04:34]} Nf4 {[%emt 0:00:35]} 28. Qf3 {[%emt 0:04:32]} N6d5 {[%emt 0:01:17]} 29. Qg4 {[%emt 0:04:16]} Qc6 {[%emt 0:05:07]} 30. Be3 {[%emt 0:05:11]} g5 {[%emt 0:04:54]} 31. Bxf4 {[%emt 0:01:58]} Nxf4 {[%emt 0:01:11]} 32. Qf3 {[%emt 0:01:26]} Qg6 {[%emt 0:01:06]} 33. Qe4 {[%emt 0:01:30]} Qb6 {[%emt 0:04:42]} 34. Rad1 {[%emt 0:02:17]} Rd8 {[%emt 0:00:54]} 35. Kh2 {[%emt 0:01:25]} Ne6 {[%emt 0:00:29]} 36. d5 {[%emt 0:02:27]} Nf4 {[%emt 0:01:28]} 37. Be2 {[%emt 0:06:33]} Re8 {[%emt 0:01:59]} 38. Bf3 {[%emt 0:04:09]} Bd6 39. Qd4 {[%emt 0:08:18]} Qxd4 {[%emt 0:02:43]} 40. Rxd4 {[%emt 0:00:30]} Bxe5 {[%emt 0:00:21]} 41. Rdd1 {[%emt 0:31:20]} Nd3+ {[%emt 0:30:37]} 42. Kg1 {[%emt 0:00:38]} Nxe1 {[%emt 0:00:21]} 43. Rxe1 {[%emt 0:00:00]} Bd4+ {[%emt 0:00:46]} 44. Kf1 {[%emt 0:00:29]} Rxe1+ {[%emt 0:00:33]} 45. Kxe1 {[%emt 0:00:12]} Bxb2 {[%emt 0:00:11]} 46. d6 {[%emt 0:00:39]} Bxa3 {[%emt 0:00:07]} 47. d7 {[%emt 0:00:07]} Be7 {[%emt 0:00:04]} 48. Bb7 {[%emt 0:00:11]} a5 {[%emt 0:00:22]} 49. Kd2 {[%emt 0:00:12]} Kg7 {[%emt 0:00:43]} 50. Bc6 {[%emt 0:00:17]} b4 {[%emt 0:00:31]} 51. Bb5 {[%emt 0:00:19]} c3+ {[%emt 0:00:08]} 52. Kc2 {[%emt 0:00:09]} Kf6 {[%emt 0:00:21]} 53. Bc4 {[%emt 0:00:18]} Bd8 {[%emt 0:01:25]} 54. Bb5 Ke7 {[%emt 0:00:20]} 55. Ba4 {[%emt 0:01:05]} f5 {[%emt 0:00:32]} 56. g3 {[%emt 0:00:09]} Bc7 {[%emt 0:00:45]} 57. Kd3 {[%emt 0:00:30]} Bxg3 {[%emt 0:00:16]} 58. Ke3 {[%emt 0:00:29]} c2 {[%emt 0:00:53]} 59. Bxc2 {[%emt 0:00:11]} f4+ {[%emt 0:00:12]} 60. Kf3 {[%emt 0:00:14]} Kxd7 {[%emt 0:00:05]} 61. Bb3 {[%emt 0:00:22]} Kd6 {[%emt 0:00:12]} 62. Ke2 {[%emt 0:00:01]} Kc5 {[%emt 0:00:11]} 0-1

[Event "GER-ch Youth U12W 2020"]
[Site "Willingen"]
[Date "2020.10.28"]
[Round "3.14"]
[White "Rodermel, Leonie"]
[Black "Rosin, Ida"]
[Result "1-0"]
[ECO "B49"]
[WhiteElo "1370"]
[BlackElo "1387"]
[Annotator "NA"]
[PlyCount "73"]
[EventDate "2020.10.27"]
[EventType "swiss"]
[EventRounds "7"]
[EventCountry "GER"]
[SourceTitle "playchess.com"]
[Source "ChessBase"]
[SourceQuality "1"]
[TimeControl "40/5400+30:1800+30"]

1. e4 {[%emt 0:00:00]} c5 {[%emt 0:00:00]} 2. Nf3 {[%emt 0:00:00]} e6 {[%emt 0:00:00]} 3. d4 {[%emt 0:00:00]} cxd4 {[%emt 0:00:05]} 4. Nxd4 {[%emt 0:00:03]} Nc6 {[%emt 0:00:13]} 5. Nc3 {[%emt 0:00:08]} Qc7 {[%emt 0:00:28]} 6. Be2 {[%emt 0:01:18]} a6 {[%emt 0:00:44]} 7. Be3 {[%emt 0:00:26]} Nf6 {[%emt 0:00:31]} 8. O-O {[%emt 0:01:11]} Bc5 {[%emt 0:00:23]} 9. Nxe6 {[%emt 0:13:11]} fxe6 {[%emt 0:04:17]} 10. Bxc5 {[%emt 0:00:51]} Qe5 {[%emt 0:01:25]} 11. Qd6 {[%emt 0:04:19]} Qxd6 {[%emt 0:00:31]} 12. Bxd6 {[%emt 0:00:08]} Nd4 {[%emt 0:00:43]} 13. Bd3 {[%emt 0:01:54]} b5 {[%emt 0:01:22]} 14. e5 {[%emt 0:07:09]} Nh5 {[%emt 0:01:24]} 15. Be4 {[%emt 0:01:00]} Ra7 {[%emt 0:01:36]} 16. Bc5 {[%emt 0:02:35]} Rc7 {[%emt 0:02:11]} 17. Bxd4 {[%emt 0:00:14]} O-O {[%emt 0:00:38]} 18. g3 {[%emt 0:07:12]} b4 {[%emt 0:01:54]} 19. Ne2 {[%emt 0:03:30]} Bb7 {[%emt 0:02:21]} 20. Bxb7 {[%emt 0:09:31]} Rxb7 {[%emt 0:00:20]} 21. f4 {[%emt 0:04:22]} Rc7 {[%emt 0:01:04]} 22. c3 {[%emt 0:03:19]} bxc3 {[%emt 0:01:36]} 23. Bxc3 {[%emt 0:02:03]} Rd8 {[%emt 0:00:47]} 24. Ba5 {[%emt 0:00:57]} Rc2 {[%emt 0:00:47]} 25. Bxd8 {[%emt 0:02:22]} Rxe2 {[%emt 0:00:14]} 26. Rf2 {[%emt 0:01:04]} Re4 {[%emt 0:01:00]} 27. b3 {[%emt 0:00:55]} Kf7 {[%emt 0:01:35]} 28. Rd1 {[%emt 0:02:28]} Ke8 {[%emt 0:00:24]} 29. Bb6 {[%emt 0:01:57]} Rb4 {[%emt 0:01:58]} 30. Bc5 {[%emt 0:00:44]} Rb5 {[%emt 0:00:24]} 31. Bd6 {[%emt 0:01:42]} g6 {[%emt 0:01:58]} 32. Rc2 {[%emt 0:01:23]} Kf7 {[%emt 0:01:22]} 33. Rc8 {[%emt 0:02:04]} Ra5 {[%emt 0:01:58]} 34. a4 {[%emt 0:00:33]} Kg7 {[%emt 0:01:24]} 35. Bf8+ {[%emt 0:02:08]} Kf7 {[%emt 0:01:00]} 36. Rxd7+ {[%emt 0:00:09]} Kg8 {[%emt 0:00:32]} 37. Bh6# 1-0

[Event "GER-ch Youth U12W 2020"]
[Site "Willingen"]
[Date "2020.10.28"]
[Round "3.15"]
[White "Pröttel, Ela"]
[Black "Modali, Nikhilamrutha"]
[Result "1-0"]
[ECO "B13"]
[WhiteElo "1229"]
[BlackElo "1193"]
[Annotator "NA"]
[PlyCount "105"]
[EventDate "2020.10.27"]
[EventType "swiss"]
[EventRounds "7"]
[EventCountry "GER"]
[SourceTitle "playchess.com"]
[Source "ChessBase"]
[SourceQuality "1"]
[TimeControl "40/5400+30:1800+30"]

1. e4 {[%emt 0:00:00]} c6 {[%emt 0:00:00]} 2. d4 {[%emt 0:00:00]} d5 {[%emt 0:00:00]} 3. exd5 {[%emt 0:00:00]} cxd5 {[%emt 0:00:00]} 4. Bd3 {[%emt 0:00:00]} Nf6 {[%emt 0:00:36]} 5. c3 {[%emt 0:00:22]} Bg4 {[%emt 0:02:57]} 6. Qb3 {[%emt 0:01:02]} Qc7 {[%emt 0:02:38]} 7. f3 {[%emt 0:01:46]} Bh5 {[%emt 0:01:53]} 8. Ne2 {[%emt 0:01:32]} Bg6 {[%emt 0:03:14]} 9. Bf4 {[%emt 0:04:08]} Qd7 {[%emt 0:04:09]} 10. Bxg6 {[%emt 0:11:42]} fxg6 {[%emt 0:01:03]} 11. Nd2 {[%emt 0:01:18]} e6 {[%emt 0:05:02]} 12. O-O Nc6 {[%emt 0:08:23]} 13. Rae1 {[%emt 0:08:38]} Nh5 {[%emt 0:06:12]} 14. g3 {[%emt 0:23:32]} Na5 {[%emt 0:07:52]} 15. Qc2 {[%emt 0:02:59]} Bd6 {[%emt 0:06:30]} 16. Bxd6 {[%emt 0:05:20]} Qxd6 {[%emt 0:00:19]} 17. Qa4+ {[%emt 0:03:08]} Nc6 {[%emt 0:01:15]} 18. f4 {[%emt 0:04:26]} O-O {[%emt 0:03:10]} 19. Nf3 {[%emt 0:01:20]} Ne7 {[%emt 0:07:48]} 20. Nc1 {[%emt 0:08:47]} Nf6 {[%emt 0:09:47]} 21. Ng5 {[%emt 0:07:39]} Nf5 {[%emt 0:14:49]} 22. Rxe6 {[%emt 0:05:03]} Qc7 {[%emt 0:00:17]} 23. Rfe1 {[%emt 0:01:24]} Nd6 {[%emt 0:05:14]} 24. Qb4 {[%emt 0:05:49]} Rfe8 {[%emt 0:01:31]} 25. Rxe8+ {[%emt 0:01:18]} Rxe8 {[%emt 0:00:10]} 26. Rxe8+ {[%emt 0:00:11]} Ndxe8 {[%emt 0:00:17]} 27. Qc5 {[%emt 0:01:11]} Qd7 {[%emt 0:01:37]} 28. Nd3 {[%emt 0:00:47]} h6 {[%emt 0:01:06]} 29. Nf3 {[%emt 0:00:08]} Qg4 {[%emt 0:01:00]} 30. Kg2 {[%emt 0:00:40]} b6 {[%emt 0:01:14]} 31. Qe7 {[%emt 0:00:36]} h5 {[%emt 0:01:36]} 32. h3 {[%emt 0:00:33]} Qf5 {[%emt 0:00:33]} 33. Qe3 {[%emt 0:00:31]} Ne4 {[%emt 0:01:12]} 34. Ng5 {[%emt 0:00:28]} N8d6 {[%emt 0:00:12]} 35. Nxe4 {[%emt 0:00:32]} Nxe4 36. Nf2 Kf7 {[%emt 0:01:48]} 37. Nxe4 {[%emt 0:00:52]} dxe4 {[%emt 0:00:05]} 38. b3 {[%emt 0:00:35]} Ke6 {[%emt 0:01:15]} 39. c4 {[%emt 0:00:17]} Kd6 {[%emt 0:01:05]} 40. a3 {[%emt 0:00:49]} Kc6 {[%emt 0:01:30]} 41. a4 {[%emt 0:30:29]} a6 {[%emt 0:30:37]} 42. d5+ {[%emt 0:00:34]} Kd6 {[%emt 0:00:00]} 43. Qxb6+ {[%emt 0:00:00]} Ke7 {[%emt 0:00:00]} 44. Qxa6 {[%emt 0:00:00]} e3 {[%emt 0:00:00]} 45. Qa7+ {[%emt 0:00:00]} Kf8 {[%emt 0:00:00]} 46. Qxe3 Qc2+ 47. Kf3 {[%emt 0:00:00]} Qd1+ {[%emt 0:00:00]} 48. Ke4 {[%emt 0:00:00]} Qb1+ {[%emt 0:00:00]} 49. Kd4 {[%emt 0:00:00]} Qa1+ {[%emt 0:00:00]} 50. Kc5 {[%emt 0:00:00]} Qa3+ {[%emt 0:00:00]} 51. Kb5 {[%emt 0:00:00]} Qd6 {[%emt 0:00:00]} 52. Qc5 {[%emt 0:00:00]} Qxc5+ {[%emt 0:00:00]} 53. Kxc5 {[%emt 0:00:00]} 1-0

[Event "GER-ch Youth U12W 2020"]
[Site "Willingen"]
[Date "2020.10.28"]
[Round "3.16"]
[White "Hergenröder, Cora"]
[Black "Steinlechner, Katja"]
[Result "1/2-1/2"]
[ECO "E22"]
[WhiteElo "1422"]
[BlackElo "1366"]
[Annotator "NA"]
[PlyCount "53"]
[EventDate "2020.10.27"]
[EventType "swiss"]
[EventRounds "7"]
[EventCountry "GER"]
[SourceTitle "playchess.com"]
[Source "ChessBase"]
[SourceQuality "1"]
[TimeControl "40/5400+30:1800+30"]

1. d4 {[%emt 0:00:00]} Nf6 {[%emt 0:00:00]} 2. c4 {[%emt 0:00:00]} e6 {[%emt 0:00:08]} 3. Nc3 {[%emt 0:00:40]} Bb4 {[%emt 0:00:29]} 4. Qb3 {[%emt 0:01:43]} Bxc3+ {[%emt 0:01:03]} 5. Qxc3 {[%emt 0:00:16]} h6 {[%emt 0:01:42]} 6. Nf3 {[%emt 0:00:40]} d5 {[%emt 0:00:25]} 7. Bf4 {[%emt 0:02:32]} O-O {[%emt 0:04:11]} 8. e3 {[%emt 0:01:11]} b6 {[%emt 0:01:58]} 9. Be2 {[%emt 0:08:19]} Bb7 {[%emt 0:01:36]} 10. O-O {[%emt 0:01:05]} Nbd7 {[%emt 0:01:59]} 11. Ne5 {[%emt 0:04:26]} Ne4 {[%emt 0:04:37]} 12. Qc2 {[%emt 0:02:28]} Rc8 {[%emt 0:04:42]} 13. Rac1 {[%emt 0:04:40]} Qe7 {[%emt 0:05:39]} 14. Bf3 {[%emt 0:05:51]} Ndf6 {[%emt 0:02:49]} 15. a3 {[%emt 0:08:32]} Rfd8 {[%emt 0:09:24]} 16. cxd5 {[%emt 0:05:13]} exd5 {[%emt 0:01:20]} 17. Bxe4 {[%emt 0:07:04]} Nxe4 {[%emt 0:01:21]} 18. f3 {[%emt 0:01:22]} Nd6 {[%emt 0:05:14]} 19. Rfe1 {[%emt 0:07:16]} a5 {[%emt 0:16:48]} 20. b4 {[%emt 0:05:24]} axb4 {[%emt 0:01:28]} 21. axb4 {[%emt 0:00:58]} Nb5 {[%emt 0:03:05]} 22. Qd3 {[%emt 0:05:08]} c6 {[%emt 0:06:43]} 23. Qf5 {[%emt 0:05:30]} Rf8 {[%emt 0:07:05]} 24. Qg4 {[%emt 0:02:58]} Qe6 {[%emt 0:02:53]} 25. Qxe6 {[%emt 0:02:47]} fxe6 {[%emt 0:00:09]} 26. Ng6 {[%emt 0:00:40]} Rfe8 {[%emt 0:01:20]} 27. g4 {[%emt 0:02:15]} 1/2-1/2

[Event "GER-ch Youth U12W 2020"]
[Site "Willingen"]
[Date "2020.10.28"]
[Round "3.17"]
[White "Eichhorn, Mathilda"]
[Black "Flierl, Veronika"]
[Result "0-1"]
[ECO "B13"]
[WhiteElo "1560"]
[BlackElo "1404"]
[Annotator "NA"]
[PlyCount "52"]
[EventDate "2020.10.27"]
[EventType "swiss"]
[EventRounds "7"]
[EventCountry "GER"]
[SourceTitle "playchess.com"]
[Source "ChessBase"]
[SourceQuality "1"]
[TimeControl "40/5400+30:1800+30"]

1. e4 {[%emt 0:00:00]} c6 {[%emt 0:00:00]} 2. d4 {[%emt 0:00:00]} d5 {[%emt 0:00:00]} 3. exd5 {[%emt 0:00:00]} cxd5 {[%emt 0:00:00]} 4. c4 {[%emt 0:00:00]} Nf6 {[%emt 0:00:01]} 5. Nc3 {[%emt 0:00:09]} Bf5 {[%emt 0:00:51]} 6. Bg5 {[%emt 0:00:32]} Nbd7 {[%emt 0:00:36]} 7. Nf3 {[%emt 0:02:04]} e6 {[%emt 0:00:57]} 8. cxd5 {[%emt 0:20:03]} exd5 {[%emt 0:02:26]} 9. Bxf6 {[%emt 0:15:00]} Nxf6 {[%emt 0:00:47]} 10. Bb5+ {[%emt 0:01:27]} Bd7 {[%emt 0:00:16]} 11. O-O {[%emt 0:01:00]} Be7 {[%emt 0:02:00]} 12. Bxd7+ {[%emt 0:06:00]} Qxd7 {[%emt 0:01:04]} 13. Ne5 {[%emt 0:00:11]} Qd6 {[%emt 0:05:07]} 14. Qa4+ {[%emt 0:02:35]} Kf8 {[%emt 0:03:25]} 15. Rac1 {[%emt 0:03:48]} g6 {[%emt 0:01:47]} 16. Nb5 {[%emt 0:02:57]} Qb6 {[%emt 0:02:03]} 17. g4 {[%emt 0:24:11]} Kg7 {[%emt 0:05:20]} 18. g5 {[%emt 0:02:15]} Ne4 {[%emt 0:01:50]} 19. f4 {[%emt 0:09:56]} Rhc8 {[%emt 0:15:32]} 20. Rxc8 {[%emt 0:06:11]} Rxc8 {[%emt 0:00:16]} 21. f5 {[%emt 0:00:43]} Nxg5 {[%emt 0:03:42]} 22. fxg6 {[%emt 0:00:39]} hxg6 {[%emt 0:00:31]} 23. Rb1 {[%emt 0:01:13]} Qf6 {[%emt 0:04:05]} 24. Kg2 {[%emt 0:00:24]} Ne4 {[%emt 0:01:25]} 25. Rf1 {[%emt 0:00:30]} Qg5+ {[%emt 0:00:51]} 26. Kh1 {[%emt 0:00:22]} Nf2+ {[%emt 0:00:49]} 0-1